[Event "2nd Namma Bengaluru Open-B 2025"]
[Site "Bengaluru"]
[Date "2025.04.12"]
[Round "7.9"]
[White "Nihaan Pohane"]
[Black "Sathyachith E M"]
[Result "1/2-1/2"]
[Annotator "NA"]
[ECO "A45"]
[WhiteElo "1882"]
[BlackElo "1801"]
[PlyCount "101"]
[EventDate "2025.04.10"]
[EventType "swiss"]
[EventCountry "IND"]
[SourceTitle "playchess.com"]
[Source "ChessBase"]
[SourceQuality "1"]
[TimeControl "3600+30"]

1. d4 {[%emt 0:00:03]} Nf6 {[%emt 0:00:06]} 2. Bf4 {[%emt 0:00:06]} g6 {[%emt 0:00:06]} 3. Nc3 {[%emt 0:00:06]} d5 {[%emt 0:00:06]} 4. e3 {[%emt 0:00:05]} Bg7 {[%emt 0:00:05]} 5. h4 {[%emt 0:00:05]} h5 {[%emt 0:00:30]} 6. Nf3 {[%emt 0:00:08]} O-O {[%emt 0:00:08]} 7. Be2 {[%emt 0:00:06]} c5 {[%emt 0:00:48]} 8. Qd2 {[%emt 0:00:18]} Nc6 {[%emt 0:02:19]} 9. Ne5 {[%emt 0:01:31]} Bf5 {[%emt 0:04:20]} 10. f3 {[%emt 0:01:56]} cxd4 {[%emt 0:05:11]} 11. exd4 {[%emt 0:00:45]} Qb6 {[%emt 0:00:37]} 12. Nxc6 {[%emt 0:02:22]} bxc6 {[%emt 0:01:05]} 13. O-O-O {[%emt 0:00:58]} a5 {[%emt 0:02:44]} 14. Rhg1 {[%emt 0:08:09]} a4 {[%emt 0:05:32]} 15. g4 {[%emt 0:07:34]} hxg4 {[%emt 0:00:54]} 16. fxg4 {[%emt 0:00:18]} Ne4 {[%emt 0:00:49]} 17. Qe3 $15 {[%emt 0:12:35]} e5 {[%emt 0:20:34]} 18. dxe5 {[%emt 0:19:13]} Qxe3+ {[%emt 0:01:06]} 19. Bxe3 {[%emt 0:01:03]} Nxc3 {[%emt 0:01:21]} 20. bxc3 {[%emt 0:00:08]} Be4 {[%emt 0:00:31]} 21. Bd4 {[%emt 0:05:29]} Rfe8 {[%emt 0:02:10]} 22. Bd3 {[%emt 0:00:40]} Bxe5 {[%emt 0:02:11]} 23. Bxe5 {[%emt 0:00:27]} Rxe5 {[%emt 0:00:07]} 24. Kd2 {[%emt 0:00:19]} Bxd3 {[%emt 0:19:10]} 25. cxd3 {[%emt 0:01:10]} Rae8 {[%emt 0:00:00]} 26. Rge1 {[%emt 0:01:16]} Rxe1 {[%emt 0:00:00]} 27. Rxe1 {[%emt 0:01:02]} Rb8 {[%emt 0:00:00]} 28. Kc2 {[%emt 0:03:03]} a3 {[%emt 0:00:00]} 29. Rb1 {[%emt 0:00:57]} Rxb1 30. Kxb1 {[%emt 0:00:01]} g5 {[%emt 0:00:00]} 31. hxg5 {[%emt 0:01:32]} Kg7 {[%emt 0:00:00]} 32. Kc2 {[%emt 0:00:03]} Kg6 {[%emt 0:00:00]} 33. Kb3 {[%emt 0:00:05]} Kxg5 {[%emt 0:00:00]} 34. Kxa3 {[%emt 0:00:04]} Kxg4 {[%emt 0:05:00]} 35. Kb4 {[%emt 0:01:23]} f5 {[%emt 0:00:00]} 36. a4 {[%emt 0:00:01]} f4 {[%emt 0:00:00]} 37. a5 {[%emt 0:00:00]} f3 {[%emt 0:00:00]} 38. a6 {[%emt 0:00:01]} f2 {[%emt 0:00:00]} 39. a7 {[%emt 0:00:01]} f1=Q {[%emt 0:02:30]} 40. a8=Q {[%emt 0:00:05]} Qxd3 {[%emt 0:00:00]} 41. Qxc6 {[%emt 0:00:56]} Kf4 {[%emt 0:00:00]} 42. Qf6+ {[%emt 0:01:25]} Ke3 {[%emt 0:00:00]} 43. Qg5+ {[%emt 0:00:39]} Ke2 {[%emt 0:00:00]} 44. Qg4+ {[%emt 0:01:24]} Kd2 {[%emt 0:00:00]} 45. Qg2+ {[%emt 0:00:12]} Ke3 {[%emt 0:00:00]} 46. Qg3+ {[%emt 0:00:43]} Ke4 {[%emt 0:00:00]} 47. Qg4+ {[%emt 0:00:22]} Ke3 {[%emt 0:00:00]} 48. Qg5+ {[%emt 0:00:17]} Ke4 {[%emt 0:00:00]} 49. Qe7+ {[%emt 0:00:12]} Kf3 {[%emt 0:00:00]} 50. Qf6+ {[%emt 0:00:25]} Ke3 {[%emt 0:00:00]} 51. Qg5+ {[%emt 0:00:11]} 1/2-1/2

[Event "2nd Namma Bengaluru Open-B 2025"]
[Site "Bengaluru"]
[Date "2025.04.12"]
[Round "7.10"]
[White "Tamang, Sudip"]
[Black "Vishwajit S"]
[Result "1-0"]
[Annotator "NA"]
[ECO "A45"]
[WhiteElo "1875"]
[BlackElo "1793"]
[PlyCount "75"]
[EventDate "2025.04.10"]
[EventType "swiss"]
[EventCountry "IND"]
[SourceTitle "playchess.com"]
[Source "ChessBase"]
[SourceQuality "1"]
[TimeControl "3600+30"]

1. d4 {[%emt 1:01:00]} Nf6 {[%emt 1:01:00]} 2. Bf4 {[%emt 0:00:30]} e6 {[%emt 0:00:30]} 3. e3 {[%emt 0:00:30]} c5 {[%emt 0:00:30]} 4. c3 {[%emt 0:00:30]} Nc6 {[%emt 0:00:30]} 5. Nd2 {[%emt 0:00:30]} cxd4 {[%emt 0:00:30]} 6. exd4 {[%emt 0:00:30]} b6 {[%emt 0:00:30]} 7. Ngf3 {[%emt 0:00:30]} Bb7 {[%emt 0:00:30]} 8. Bd3 {[%emt 0:00:30]} Be7 {[%emt 0:00:30]} 9. h3 {[%emt 0:00:30]} d6 {[%emt 0:00:30]} 10. Qe2 {[%emt 0:00:30]} a6 {[%emt 0:00:30]} 11. a4 {[%emt 0:00:30]} O-O {[%emt 0:00:30]} 12. O-O {[%emt 0:00:30]} Qb8 {[%emt 0:00:30]} 13. Rfe1 {[%emt 0:00:30]} Rd8 {[%emt 0:00:30]} 14. Bh2 {[%emt 0:00:30]} Qa7 {[%emt 0:00:30]} 15. Ng5 {[%emt 0:00:30]} Re8 {[%emt 0:00:30]} 16. Nc4 {[%emt 0:00:30]} Rad8 {[%emt 0:00:30]} 17. Nxf7 {[%emt 0:00:30]} Kxf7 {[%emt 0:00:30]} 18. Qxe6+ {[%emt 0:00:30]} Kf8 {[%emt 0:00:30]} 19. Nxd6 {[%emt 0:00:30]} Rxd6 {[%emt 0:00:30]} 20. Bxd6 {[%emt 0:00:30]} Bc8 {[%emt 0:00:30]} 21. Bxe7+ {[%emt 0:00:30]} Nxe7 {[%emt 0:00:30]} 22. Qd6 {[%emt 0:00:30]} Qd7 $18 {[%emt 0:00:30]} 23. Qxb6 {[%emt 0:00:30]} Nfd5 {[%emt 0:00:30]} 24. Qc5 {[%emt 0:00:30]} Bb7 {[%emt 0:00:30]} 25. Bf1 {[%emt 0:00:30]} Rc8 {[%emt 0:00:30]} 26. Qa3 {[%emt 0:00:30]} Rc6 {[%emt 0:00:30]} 27. c4 {[%emt 0:00:30]} Nf4 {[%emt 0:00:30]} 28. d5 {[%emt 0:00:30]} Rg6 {[%emt 0:00:30]} 29. Kh2 {[%emt 0:00:30]} Kf7 30. g3 {[%emt 0:00:30]} Nh5 {[%emt 0:01:00]} 31. Re5 {[%emt 0:00:30]} Rf6 {[%emt 0:00:30]} 32. Rxh5 {[%emt 0:00:30]} Rxf2+ {[%emt 0:00:30]} 33. Kg1 {[%emt 0:00:30]} Rf6 {[%emt 0:00:30]} 34. Re5 {[%emt 0:00:30]} Qc7 {[%emt 0:00:30]} 35. Rae1 {[%emt 0:00:30]} Ng6 {[%emt 0:00:30]} 36. Re6 {[%emt 0:00:30]} Rf5 {[%emt 0:00:30]} 37. Qe3 {[%emt 0:00:30]} Bc8 {[%emt 0:00:30]} 38. Bd3 {[%emt 0:00:30]} 1-0